fUST/lending_fUST_20251212
["ID","MTS","AMOUNT","RATE_DAILY","PERIOD"]
[398289192,1765492244923,-842.39352047,0.00010959,2]
[398289193,1765492244933,-842.39352047,0.00010959,2]
[398289194,1765492244943,-842.39352047,0.00010959,2]
[398289195,1765492244954,-842.39352047,0.00010959,2]
[398289196,1765492244964,-842.39352047,0.00010959,2]
[398289197,1765492244974,-842.39352047,0.00010959,2]
[398289198,1765492244983,-842.39352047,0.00010959,2]
[398289199,1765492244992,-500.0,0.00010959,2]
[398289200,1765492245002,-199.67341052,0.00010959,2]
[398289201,1765492245011,-2260.84806456,0.00010959,2]
[398289202,1765492245020,-2260.84806456,0.00010959,2]
[398289203,1765492245030,-2260.84806456,0.00010959,2]
[398289204,1765492245039,-2260.84806456,0.00010959,2]
[398289205,1765492245048,-2260.84806456,0.00010959,2]
[398289206,1765492245057,-2260.84806456,0.00010959,2]
[398289207,1765492245067,-2260.84806456,0.00010959,2]
[398289208,1765492245076,-2260.84806456,0.00010959,2]
[398289209,1765492245086,-2260.84806456,0.00010959,2]
[398289210,1765492245095,-2260.84806456,0.00010959,2]
[398289211,1765492245105,-2260.84806456,0.00010959,2]
[398289212,1765492245115,-2260.84806456,0.00010959,2]
[398289213,1765492245124,-2260.84806456,0.00010959,2]
[398289214,1765492245133,-2260.84806456,0.00010959,2]
[398289215,1765492245142,-2260.84806456,0.00010959,2]
[398289216,1765492245151,-2260.84806456,0.00010959,2]
[398289217,1765492245164,-2260.84806456,0.00010959,2]
[398289218,1765492245174,-2260.84806456,0.00010959,2]
[398289219,1765492245183,-2260.84806456,0.00010959,2]
[398289220,1765492245192,-2260.84806456,0.00010959,2]
[398289221,1765492245203,-2260.84806456,0.00010959,2]
[398289222,1765492245212,-2260.84806456,0.00010959,2]
[398289223,1765492245221,-2260.84806456,0.00010959,2]
[398289224,1765492245230,-2260.84806456,0.00010959,2]
[398289225,1765492245241,-2260.84806456,0.00010959,2]
[398289226,1765492245250,-2260.84806456,0.00010959,2]
[398289227,1765492245259,-2260.84806456,0.00010959,2]
[398289228,1765492245268,-151.0,0.00011,2]
[398289229,1765492245277,-151.0,0.00011,2]
[398289230,1765492245287,-151.0,0.00011,2]
[398289231,1765492245296,-300.0,0.00011075,2]
[398289232,1765492245305,-300.0,0.00011075,2]
[398289233,1765492245314,-300.0,0.00011075,2]
[398289234,1765492245323,-300.0,0.00011075,2]
[398289235,1765492245332,-300.0,0.00011075,2]
[398289236,1765492245342,-300.0,0.00011075,2]
[398289237,1765492245352,-300.0,0.00011075,2]
[398289238,1765492245361,-300.0,0.00011075,2]
[398289239,1765492245370,-300.0,0.00011075,2]
[398289240,1765492245380,-300.0,0.00011075,2]
[398289241,1765492245389,-300.0,0.00011075,2]
[398289242,1765492245398,-300.0,0.00011075,2]
[398289243,1765492245408,-300.0,0.00011075,2]
[398289244,1765492245417,-300.0,0.00011075,2]
[398289245,1765492245427,-300.0,0.00011075,2]
[398289246,1765492245437,-600.0,0.00011075,2]
[398289247,1765492245446,-151.0,0.000112,2]
[398289248,1765492245456,-151.0,0.000112,2]
[398289249,1765492245465,-531.7298003,0.00011233,2]
[398289250,1765492245474,-151.0,0.000114,2]
[398289252,1765492245484,-151.0,0.000114,2]
[398289253,1765492245493,-151.0,0.000114,2]
[398289254,1765492245503,-151.0,0.000115,2]
[398289255,1765492245512,-151.0,0.000116,2]
[398289256,1765492245522,-151.0,0.000116,2]
[398289257,1765492245531,-574.12855637,0.00011629,2]
[398289258,1765492245541,-151.0,0.000118,2]
[398289259,1765492245550,-151.0,0.000118,2]
[398289260,1765492245559,-484.07838221,0.00011846,2]
[398289261,1765492245568,-151.0,0.000119,2]
[398289262,1765492245577,-151.0,0.000119,2]
[398289263,1765492245587,-420.0,0.00011932,2]
[398289264,1765492245596,-151.0,0.00012048,2]
[398289265,1765492245605,-151.0,0.000121,2]
[398289266,1765492245614,-151.0,0.000121,2]
[398289267,1765492245623,-595.37131296,0.00012177,2]
[398289268,1765492245632,-720.0,0.00012183,2]
[398289269,1765492245641,-151.0,0.000122,2]
[398289270,1765492245650,-295.30641892,0.00012226,2]
[398289271,1765492245660,-6404.45082469,0.00012229,2]
[398289272,1765492245670,-4566.4816334,0.00012274,2]
[398289273,1765492245680,-151.0,0.000123,2]
[398289274,1765492245689,-151.0,0.000123,2]
[398289275,1765492245699,-5675.0,0.00012314,2]
[398289277,1765492245708,-1360.0,0.0001232,2]
[398289279,1765492245719,-2156.0,0.0001232,2]
[398289281,1765492245729,-1151.15,0.00012329,2]
[398289283,1765492245739,-484.07838221,0.0001237,2]
[398289285,1765492245748,-151.0,0.000125,2]
[398289287,1765492245758,-151.0,0.000125,2]
[398289289,1765492245767,-2773.56790519,0.00012553,2]
[398289291,1765492245776,-151.0,0.00012596,2]
[398289293,1765492245785,-151.0,0.000126,2]
[398289295,1765492245795,-151.0,0.000127,2]
[398289297,1765492245804,-151.0,0.000127,2]
[398289299,1765492245814,-151.0,0.000127,2]
[398289301,1765492245823,-617.40005154,0.00012725,2]
[398289303,1765492245832,-363.92264838,0.00012854,2]
[398289305,1765492245841,-477.42549354,0.00012876,2]
[398289307,1765492245851,-500.0,0.00012876,2]
[398289309,1765492245860,-500.0,0.00012876,2]
[398289311,1765492245870,-500.0,0.00012876,2]
[398289313,1765492245879,-500.0,0.00012876,2]
[398289315,1765492245889,-500.0,0.00012876,2]
[398289317,1765492245899,-500.0,0.00012876,2]
[398289319,1765492245908,-500.0,0.00012876,2]
[398289321,1765492245917,-500.0,0.00012876,2]
[398289323,1765492245927,-1534.65,0.00012876,2]
[398289324,1765492245936,-500.0,0.00012876,2]
[398289326,1765492245945,-500.0,0.00012876,2]
[398289328,1765492245955,-786.0,0.00012876,2]
[398289330,1765492245964,-500.0,0.00012876,2]
[398289332,1765492245974,-500.0,0.00012876,2]
[398289334,1765492245984,-500.0,0.00012876,2]
[398289336,1765492245993,-730.11,0.00012876,2]
[398289338,1765492246002,-500.0,0.00012876,2]
[398289340,1765492246012,-2056.44,0.00012876,2]
[398289342,1765492246022,-2056.44,0.00012876,2]
[398289344,1765492246031,-2056.44,0.00012876,2]
[398289346,1765492246040,-2056.44,0.00012876,2]
[398289348,1765492246049,-2056.44,0.00012876,2]
[398289350,1765492246058,-2056.44,0.00012876,2]
[398289351,1765492246067,-162.33588817,0.00012876,2]
[398289353,1765492246077,-2056.44,0.00012876,2]
[398289355,1765492246087,-2056.44,0.00012876,2]
[398289357,1765492246097,-2056.44,0.00012876,2]
[398289359,1765492246107,-2056.44,0.00012876,2]
[398289361,1765492246116,-2056.44,0.00012876,2]
[398289363,1765492246125,-2056.44,0.00012876,2]
[398289365,1765492246135,-2056.44,0.00012876,2]
[398289367,1765492246144,-500.0,0.00012876,2]
[398289369,1765492246153,-2056.44,0.00012876,2]
[398289371,1765492246166,-2056.44,0.00012876,2]
[398289373,1765492246175,-2056.44,0.00012876,2]
[398289375,1765492246184,-2056.44,0.00012876,2]
[398289377,1765492246193,-2056.44,0.00012876,2]
[398289379,1765492246205,-2056.44,0.00012876,2]
[398289381,1765492246214,-2056.44,0.00012876,2]
[398289383,1765492246223,-500.0,0.00012876,2]
[398289385,1765492246233,-2056.44,0.00012876,2]
[398289387,1765492246242,-2056.44,0.00012876,2]
[398289389,1765492246251,-598.61,0.00012876,2]
[398289391,1765492246259,-2056.44,0.00012876,2]
[398289393,1765492246268,-2056.50472819,0.00012876,2]
[398289395,1765492246278,-500.0,0.00012876,2]
[398289397,1765492246287,-500.0,0.00012876,2]
[398289399,1765492246296,-500.0,0.00012876,2]
[398289401,1765492246306,-500.0,0.00012876,2]
[398289403,1765492246315,-500.0,0.00012876,2]
[398289405,1765492246324,-687.0,0.00012876,2]
[398289407,1765492246333,-500.0,0.00012876,2]
[398289409,1765492246342,-500.0,0.00012876,2]
[398289411,1765492246351,-500.0,0.00012876,2]
[398289412,1765492246360,-500.0,0.00012876,2]
[398289413,1765492246370,-500.0,0.00012876,2]
[398289414,1765492246378,-500.0,0.00012876,2]
[398289415,1765492246387,-500.56124985,0.00012876,2]
[398289416,1765492246401,-500.0,0.00012876,2]
[398289417,1765492246410,-500.0,0.00012876,2]
[398289418,1765492246419,-500.0,0.00012876,2]
[398289419,1765492246428,-500.0,0.00012876,2]
[398289420,1765492246438,-500.0,0.00012876,2]
[398289421,1765492246447,-500.0,0.00012876,2]
[398289422,1765492246457,-690.75,0.00012876,2]
[398289423,1765492246467,-500.0,0.00012876,2]
[398289424,1765492246476,-500.0,0.00012876,2]
[398289425,1765492246486,-500.0,0.00012876,2]
[398289426,1765492246495,-500.0,0.00012876,2]
[398289427,1765492246504,-805.73,0.00012876,2]
[398289428,1765492246513,-500.0,0.00012876,2]
[398289429,1765492246523,-539.03,0.00012876,2]
[398289430,1765492246532,-500.0,0.00012876,2]
[398289431,1765492246541,-500.0,0.00012876,2]
[398289432,1765492246553,-500.0,0.00012876,2]
[398289433,1765492246562,-500.0,0.00012876,2]
[398289434,1765492246571,-500.0,0.00012876,2]
[398289435,1765492246580,-500.0,0.00012876,2]
[398289436,1765492246590,-500.0,0.00012876,2]
[398289437,1765492246599,-500.0,0.00012876,2]
[398289438,1765492246608,-500.0,0.00012876,2]
[398289439,1765492246617,-946.44,0.00012876,2]
[398289440,1765492246626,-643.52,0.00012876,2]
[398289441,1765492246636,-500.0,0.00012876,2]
[398289442,1765492246645,-500.52640405,0.00012876,2]
[398289443,1765492246654,-500.0,0.00012876,2]
[398289444,1765492246665,-500.0,0.00012876,2]
[398289445,1765492246674,-500.0,0.00012876,2]
[398289446,1765492246684,-500.0,0.00012876,2]
[398289447,1765492246693,-500.0,0.00012876,2]
[398289448,1765492246703,-1001.32,0.00012876,2]
[398289449,1765492246713,-500.0,0.00012876,2]
[398289450,1765492246722,-552.03,0.00012876,2]
[398289451,1765492246731,-500.0,0.00012876,2]
[398289452,1765492246740,-500.0,0.00012876,2]
[398289453,1765492246749,-839.41,0.00012876,2]
[398289454,1765492246758,-500.0,0.00012876,2]
[398289455,1765492246767,-500.0,0.00012876,2]
[398289456,1765492246776,-500.0,0.00012876,2]
[398289457,1765492246785,-500.0,0.00012876,2]
[398289458,1765492246794,-500.0,0.00012876,2]
[398289459,1765492246803,-500.0,0.00012876,2]
[398289460,1765492246812,-500.0,0.00012876,2]
[398289461,1765492246823,-500.0,0.00012876,2]
[398289462,1765492246832,-500.0,0.00012876,2]
[398289463,1765492246841,-500.0,0.00012876,2]
[398289464,1765492246850,-520.94009992,0.00012876,2]
[398289465,1765492246859,-500.0,0.00012876,2]
[398289466,1765492246868,-500.0,0.00012876,2]
[398289467,1765492246877,-500.0,0.00012876,2]
[398289468,1765492246886,-500.0,0.00012876,2]
[398289469,1765492246895,-500.0,0.00012876,2]
[398289470,1765492246904,-500.0,0.00012876,2]
[398289471,1765492246913,-500.0,0.00012876,2]
[398289472,1765492246922,-500.0,0.00012876,2]
[398289473,1765492246931,-500.0,0.00012876,2]
[398289474,1765492246941,-902.84,0.00012876,2]
[398289475,1765492246950,-500.0,0.00012876,2]
[398289476,1765492246960,-500.0,0.00012876,2]
[398289477,1765492246969,-500.0,0.00012876,2]
[398289478,1765492246979,-436.34381408,0.00012876,2]
[398289479,1765492246988,-500.0,0.00012876,2]
[398289480,1765492246997,-500.0,0.00012876,2]
[398289481,1765492247006,-603.34,0.00012876,2]
[398289482,1765492247016,-500.0,0.00012876,2]
[398289483,1765492247026,-500.0,0.00012876,2]
[398289484,1765492247035,-500.0,0.00012876,2]
[398289485,1765492247044,-500.0,0.00012876,2]
[398289486,1765492247054,-151.24,0.00012876,2]
[398289487,1765492247063,-500.0,0.00012876,2]
[398289488,1765492247073,-500.0,0.00012876,2]
[398289489,1765492247082,-1810.52,0.00012876,2]
[398289490,1765492247092,-759.85,0.00012876,2]
[398289491,1765492247101,-500.0,0.00012876,2]
[398289492,1765492247110,-500.0,0.00012876,2]
[398289493,1765492247119,-572.36,0.00012876,2]
[398289494,1765492247129,-500.0,0.00012876,2]
[398289495,1765492247139,-1282.96,0.00012876,2]
[398289496,1765492247149,-500.0,0.00012876,2]
[398289497,1765492247160,-782.23,0.00012876,2]
[398289498,1765492247171,-424.4722194,0.00012876,2]
[398289499,1765492247180,-500.0,0.00012876,2]
[398289500,1765492247189,-881.12,0.00012876,2]
[398289501,1765492247199,-500.0,0.00012876,2]
[398289502,1765492247210,-500.0,0.00012876,2]
[398289503,1765492247219,-500.0,0.00012876,2]
[398289504,1765492247229,-500.0,0.00012876,2]
[398289505,1765492247239,-972.04,0.00012876,2]
[398289506,1765492247249,-500.0,0.00012876,2]
[398289507,1765492247259,-500.0,0.00012876,2]
[398289508,1765492247269,-500.0,0.00012876,2]
[398289509,1765492247279,-500.0,0.00012876,2]
[398289510,1765492247289,-500.0,0.00012876,2]
[398289511,1765492247298,-500.0,0.00012876,2]
[398289512,1765492247308,-436.79639259,0.00012876,2]
[398289513,1765492247317,-500.0,0.00012876,2]
[398289514,1765492247326,-539.23187468,0.00012876,2]
[398289515,1765492247336,-577.41,0.00012876,2]
[398289516,1765492247345,-500.0,0.00012876,2]
[398289517,1765492247354,-500.0,0.00012876,2]
[398289518,1765492247365,-500.0,0.00012876,2]
[398289519,1765492247374,-500.0,0.00012876,2]
[398289520,1765492247383,-501.70351157,0.00012876,2]
[398289521,1765492247393,-500.0,0.00012876,2]
[398289522,1765492247402,-500.0,0.00012876,2]
[398289523,1765492247412,-500.0,0.00012876,2]
[398289524,1765492247421,-500.0,0.00012876,2]
[398289525,1765492247431,-583.27,0.00012876,2]
[398289526,1765492247440,-523.08,0.00012876,2]
[398289527,1765492247450,-500.0,0.00012876,2]
[398289528,1765492247459,-500.0,0.00012876,2]
[398289529,1765492247469,-700.53,0.00012876,2]
[398289530,1765492247478,-500.0,0.00012876,2]
[398289531,1765492247487,-840.0,0.00012876,2]
[398289532,1765492247497,-500.0,0.00012876,2]
[398289533,1765492247506,-537.54,0.00012876,2]
[398289534,1765492247515,-500.0,0.00012876,2]
[398289535,1765492247525,-500.0,0.00012876,2]
[398289536,1765492247536,-500.0,0.00012876,2]
[398289537,1765492247546,-500.0,0.00012876,2]
[398289538,1765492247555,-500.0,0.00012876,2]
[398289539,1765492247564,-500.0,0.00012876,2]
[398289540,1765492247574,-2082.36,0.00012876,2]
[398289541,1765492247583,-500.0,0.00012876,2]
[398289542,1765492247592,-500.0,0.00012876,2]
[398289543,1765492247601,-500.0,0.00012876,2]
[398289544,1765492247611,-500.0,0.00012876,2]
[398289545,1765492247619,-500.0,0.00012876,2]
[398289546,1765492247629,-263.80328105,0.00012876,2]
[398289547,1765492247638,-500.0,0.00012876,2]
[398289548,1765492247648,-500.0,0.00012876,2]
[398289549,1765492247657,-500.0,0.00012876,2]
[398289550,1765492247667,-500.0,0.00012876,2]
[398289551,1765492247676,-500.0,0.00012876,2]
[398289552,1765492247685,-662.0,0.00012876,2]
[398289553,1765492247694,-500.0,0.00012876,2]
[398289554,1765492247704,-219.00667821,0.00012876,2]
[398289555,1765492247713,-500.0,0.00012876,2]
[398289556,1765492247722,-500.0,0.00012876,2]
[398289557,1765492247732,-500.0,0.00012876,2]
[398289558,1765492247742,-500.0,0.00012876,2]
[398289559,1765492247751,-500.0,0.00012876,2]
[398289560,1765492247761,-500.0,0.00012876,2]
[398289561,1765492247770,-500.0,0.00012876,2]
[398289562,1765492247779,-580.73,0.00012876,2]
[398289563,1765492247789,-841.71,0.00012876,2]
[398289564,1765492247799,-500.0,0.00012876,2]
[398289565,1765492247808,-500.0,0.00012876,2]
[398289566,1765492247818,-500.0,0.00012876,2]
[398289567,1765492247827,-500.0,0.00012876,2]
[398289568,1765492247837,-2005.29,0.00012876,2]
[398289569,1765492247847,-500.0,0.00012876,2]
[398289570,1765492247856,-500.0,0.00012876,2]
[398289571,1765492247866,-500.0,0.00012876,2]
[398289572,1765492247875,-2403.49,0.00012876,2]
[398289573,1765492247884,-1039.52,0.00012876,2]
[398289574,1765492247893,-949.64,0.00012876,2]
[398289575,1765492247903,-500.0,0.00012876,2]
[398289576,1765492247914,-500.0,0.00012876,2]
[398289577,1765492247923,-500.0,0.00012876,2]
[398289578,1765492247932,-500.0,0.00012876,2]
[398289579,1765492247942,-500.0,0.00012876,2]
[398289580,1765492247951,-500.0,0.00012876,2]
[398289581,1765492247961,-536.44732668,0.00012876,2]
[398289582,1765492247971,-1526.62,0.00012876,2]
[398289583,1765492247980,-500.0,0.00012876,2]
[398289584,1765492247990,-500.0,0.00012876,2]
[398289585,1765492248171,-529.09,0.00012876,2]
[398289586,1765492248190,-500.0,0.00012876,2]
[398289587,1765492248200,-500.0,0.00012876,2]
[398289588,1765492248211,-782.01,0.00012876,2]
[398289589,1765492248221,-500.0,0.00012876,2]
[398289590,1765492248231,-533.14,0.00012876,2]
[398289591,1765492248241,-500.0,0.00012876,2]
[398289592,1765492248251,-927.86,0.00012876,2]
[398289593,1765492248260,-590.76,0.00012876,2]
[398289594,1765492248269,-1396.37,0.00012876,2]
[398289595,1765492248279,-500.0,0.00012876,2]
[398289596,1765492248288,-500.0,0.00012876,2]
[398289597,1765492248298,-619.89294361,0.00012876,2]
[398289598,1765492248308,-500.0,0.00012876,2]
[398289599,1765492248317,-500.0,0.00012876,2]
[398289600,1765492248327,-500.0,0.00012876,2]
[398289601,1765492248336,-809.91,0.00012876,2]
[398289602,1765492248346,-976.0,0.00012876,2]
[398289603,1765492248356,-500.0,0.00012876,2]
[398289604,1765492248365,-185.30185479,0.00012876,2]
[398289605,1765492248375,-521.55,0.00012876,2]
[398289606,1765492248384,-1089.34,0.00012876,2]
[398289607,1765492248394,-500.0,0.00012876,2]
[398289608,1765492248403,-500.0,0.00012876,2]
[398289609,1765492248413,-500.0,0.00012876,2]
[398289610,1765492248422,-500.0,0.00012876,2]
[398289611,1765492248431,-674.89,0.00012876,2]
[398289612,1765492248441,-1052.96,0.00012876,2]
[398289613,1765492248451,-500.0,0.00012876,2]
[398289614,1765492248461,-500.0,0.00012876,2]
[398289615,1765492248470,-834.12,0.00012876,2]
[398289616,1765492248480,-500.0,0.00012876,2]
[398289617,1765492248489,-4127.16,0.00012876,2]
[398289618,1765492248499,-703.35,0.00012876,2]
[398289619,1765492248509,-500.0,0.00012876,2]
[398289620,1765492248519,-500.0,0.00012876,2]
[398289621,1765492248528,-815.51,0.00012876,2]
[398289622,1765492248537,-2260.47,0.00012876,2]
[398289623,1765492248547,-500.0,0.00012876,2]
[398289624,1765492248557,-542.22,0.00012876,2]
[398289625,1765492248566,-500.0,0.00012876,2]
[398289626,1765492248576,-500.0,0.00012876,2]
[398289627,1765492248585,-1027.72,0.00012876,2]
[398289628,1765492248595,-1069.28,0.00012876,2]
[398289629,1765492248604,-500.0,0.00012876,2]
[398289630,1765492248614,-589.79359466,0.00012876,2]
[398289631,1765492248624,-500.0,0.00012876,2]
[398289632,1765492248634,-540.33,0.00012876,2]
[398289633,1765492248644,-648.18,0.00012876,2]
[398289634,1765492248654,-500.0,0.00012876,2]
[398289635,1765492248664,-501.24,0.00012876,2]
[398289636,1765492248673,-500.0,0.00012876,2]
[398289637,1765492248682,-765.4,0.00012876,2]
[398289638,1765492248692,-533.43,0.00012876,2]
[398289639,1765492248701,-500.0,0.00012876,2]
[398289640,1765492248711,-500.0,0.00012876,2]
[398289641,1765492248720,-500.0,0.00012876,2]
[398289642,1765492248730,-1122.29,0.00012876,2]
[398289643,1765492248739,-500.0,0.00012876,2]
[398289644,1765492248748,-500.0,0.00012876,2]
[398289645,1765492248757,-500.0,0.00012876,2]
[398289646,1765492248767,-610.58,0.00012876,2]
[398289647,1765492248776,-682.3,0.00012876,2]
[398289648,1765492248785,-500.0,0.00012876,2]
[398289649,1765492248795,-1308.88,0.00012876,2]
[398289650,1765492248804,-638.95,0.00012876,2]
[398289651,1765492248814,-500.0,0.00012876,2]
[398289652,1765492248823,-513.15,0.00012876,2]
[398289653,1765492248832,-726.68,0.00012876,2]
[398289654,1765492248842,-589.95,0.00012876,2]
[398289655,1765492248851,-700.38,0.00012876,2]
[398289656,1765492248860,-664.01,0.00012876,2]
[398289657,1765492248870,-853.59,0.00012876,2]
[398289658,1765492248879,-500.0,0.00012876,2]
[398289659,1765492248888,-500.0,0.00012876,2]
[398289660,1765492248898,-2877.77,0.00012876,2]
[398289661,1765492248907,-722.66,0.00012876,2]
[398289662,1765492248917,-500.0,0.00012876,2]
[398289663,1765492248927,-500.0,0.00012876,2]
[398289664,1765492248936,-500.0,0.00012876,2]
[398289665,1765492248946,-500.0,0.00012876,2]
[398289666,1765492248955,-500.0,0.00012876,2]
[398289667,1765492248965,-500.0,0.00012876,2]
[398289668,1765492248975,-1077.34,0.00012876,2]
[398289669,1765492248984,-1267.62,0.00012876,2]
[398289670,1765492248993,-500.0,0.00012876,2]
[398289671,1765492249003,-500.0,0.00012876,2]
[398289672,1765492249012,-500.0,0.00012876,2]
[398289673,1765492249021,-500.0,0.00012876,2]
[398289674,1765492249031,-500.0,0.00012876,2]
[398289675,1765492249040,-500.0,0.00012876,2]
[398289676,1765492249050,-500.0,0.00012876,2]
[398289677,1765492249059,-500.0,0.00012876,2]
[398289678,1765492249069,-500.0,0.00012876,2]
[398289679,1765492249079,-500.0,0.00012876,2]
[398289680,1765492249090,-500.0,0.00012876,2]
[398289681,1765492249099,-2030.03,0.00012876,2]
[398289682,1765492249109,-458.34948724,0.00012876,2]
[398289683,1765492249119,-500.0,0.00012876,2]
[398289684,1765492249128,-500.0,0.00012876,2]
[398289685,1765492249137,-500.0,0.00012876,2]
[398289686,1765492249147,-500.0,0.00012876,2]
[398289687,1765492249157,-500.0,0.00012876,2]
[398289688,1765492249170,-777.53,0.00012876,2]
[398289689,1765492249179,-500.0,0.00012876,2]
[398289690,1765492249189,-770.05,0.00012876,2]
[398289691,1765492249198,-500.0,0.00012876,2]
[398289692,1765492249210,-1142.32,0.00012876,2]
[398289693,1765492249220,-500.0,0.00012876,2]
[398289694,1765492249229,-500.0,0.00012876,2]
[398289695,1765492249240,-500.0,0.00012876,2]
[398289696,1765492249249,-500.0,0.00012876,2]
[398289697,1765492249259,-500.0,0.00012876,2]
[398289698,1765492249268,-500.0,0.00012876,2]
[398289699,1765492249277,-645.42,0.00012876,2]
[398289700,1765492249287,-717.07,0.00012876,2]
[398289701,1765492249296,-545.21,0.00012876,2]
[398289702,1765492249305,-500.0,0.00012876,2]
[398289703,1765492249315,-169.821118,0.00012876,2]
[398289704,1765492249324,-500.0,0.00012876,2]
[398289705,1765492249334,-500.0,0.00012876,2]
[398289706,1765492249343,-500.0,0.00012876,2]
[398289707,1765492249353,-652.24,0.00012876,2]
[398289708,1765492249362,-887.8,0.00012876,2]
[398289709,1765492249371,-500.0,0.00012876,2]
[398289710,1765492249381,-500.0,0.00012876,2]
[398289711,1765492249390,-500.0,0.00012876,2]
[398289712,1765492249399,-500.0,0.00012876,2]
[398289713,1765492249409,-500.0,0.00012876,2]
[398289714,1765492249418,-500.0,0.00012876,2]
[398289715,1765492249427,-1112.024898,0.00012876,2]
[398289716,1765492249437,-1316.52,0.00012876,2]
[398289717,1765492249446,-381.74773304,0.00012876,2]
[398289718,1765492249456,-500.0,0.00012876,2]
[398289719,1765492249465,-500.0,0.00012876,2]
[398289720,1765492249475,-500.0,0.00012876,2]
[398289721,1765492249484,-2863.19,0.00012876,2]
[398289722,1765492249493,-496.84809073,0.00012876,2]
[398289723,1765492249502,-500.0,0.00012876,2]
[398289724,1765492249512,-500.0,0.00012876,2]
[398289725,1765492249521,-500.0,0.00012876,2]
[398289726,1765492249531,-500.0,0.00012876,2]
[398289727,1765492249540,-500.0,0.00012876,2]
[398289728,1765492249550,-500.0,0.00012876,2]
[398289729,1765492249559,-500.0,0.00012876,2]
[398289730,1765492249568,-500.0,0.00012876,2]
[398289731,1765492249577,-500.0,0.00012876,2]
[398289732,1765492249586,-990.62,0.00012876,2]
[398289733,1765492249595,-500.0,0.00012876,2]
[398289734,1765492249604,-500.0,0.00012876,2]
[398289735,1765492249614,-500.0,0.00012876,2]
[398289736,1765492249623,-500.0,0.00012876,2]
[398289737,1765492249632,-1583.84,0.00012876,2]
[398289738,1765492249642,-1764.16,0.00012876,2]
[398289739,1765492249651,-500.0,0.00012876,2]
[398289740,1765492249660,-500.0,0.00012876,2]
[398289741,1765492249669,-500.0,0.00012876,2]
[398289742,1765492249678,-500.0,0.00012876,2]
[398289743,1765492249688,-694.73,0.00012876,2]
[398289744,1765492249697,-500.0,0.00012876,2]
[398289745,1765492249707,-9020.89,0.00012876,2]
[398289746,1765492249717,-1555.13,0.00012876,2]
[398289747,1765492249726,-767.88,0.00012876,2]
[398289748,1765492249735,-972.15,0.00012876,2]
[398289749,1765492249744,-500.0,0.00012876,2]
[398289750,1765492249753,-500.0,0.00012876,2]
[398289751,1765492249763,-500.0,0.00012876,2]
[398289752,1765492249772,-500.0,0.00012876,2]
[398289753,1765492249781,-500.0,0.00012876,2]
[398289754,1765492249790,-1848.31,0.00012876,2]
[398289755,1765492249799,-511.85,0.00012876,2]
[398289756,1765492249809,-500.0,0.00012876,2]
[398289757,1765492249818,-500.0,0.00012876,2]
[398289758,1765492249828,-500.0,0.00012876,2]
[398289759,1765492249837,-500.0,0.00012876,2]